fUSD/lending_fUSD_20240702
["ID","MTS","AMOUNT","RATE_DAILY","PERIOD"]
[330912583,1719937868865,-151.0,0.00022988,7]
[330912585,1719937868875,-151.0,0.00022988,7]
[330912587,1719937868884,-150.0,0.00022988,4]
[330912589,1719937868894,-156.218867,0.00022988,7]
[330912591,1719937868905,-151.0,0.00022988,7]
[330912593,1719937868914,-151.0,0.00022988,7]
[330912595,1719937868923,-151.0,0.00022988,7]
[330912597,1719937868932,-151.0,0.00022988,7]
[330912599,1719937868941,-151.0,0.00022988,7]
[330912601,1719937868950,-151.0,0.00022988,7]
[330912603,1719937868960,-151.0,0.00022988,7]
[330912605,1719937868969,-151.0,0.00022988,7]
[330912607,1719937868978,-151.0,0.00022988,7]
[330912609,1719937868987,-500.0,0.00022988,4]
[330912611,1719937868996,-203.756009,0.00022988,7]
[330912613,1719937869005,-203.756009,0.00022988,7]
[330912615,1719937869017,-151.0,0.00022988,7]
[330912617,1719937869029,-151.0,0.00022988,7]
[330912619,1719937869038,-316.991332,0.00022988,7]
[330912621,1719937869047,-316.991332,0.00022988,7]
[330912623,1719937869058,-530.21,0.00022988,4]
[330912625,1719937869068,-151.0,0.00022988,7]
[330912626,1719937869077,-4005.79,0.00022988,4]
[330912627,1719937869086,-500.0,0.00022988,4]
[330912628,1719937869096,-646.165723,0.00022988,7]
[330912629,1719937869108,-2302.741087,0.00022988,7]
[330912630,1719937869117,-646.165723,0.00022988,7]
[330912631,1719937869127,-2302.741087,0.00022988,7]
[330912632,1719937869136,-151.0,0.00022988,7]
[330912633,1719937869145,-151.0,0.00022988,7]
[330912634,1719937869154,-333.27,0.00022988,4]
[330912635,1719937869163,-1013.548976,0.00022988,7]
[330912636,1719937869173,-1013.548976,0.00022988,7]
[330912637,1719937869183,-151.0,0.00022988,7]
[330912638,1719937869192,-1035.105158,0.00022988,7]
[330912639,1719937869201,-368.887552,0.00022988,7]
[330912641,1719937869211,-1035.105158,0.00022988,7]
[330912642,1719937869220,-368.887552,0.00022988,7]
[330912643,1719937869230,-500.0,0.00022988,4]
[330912644,1719937869239,-219.619753,0.00022988,7]
[330912645,1719937869249,-219.619753,0.00022988,7]
[330912646,1719937869259,-743.39,0.00022988,4]
[330912647,1719937869270,-6600.079412,0.00022988,7]
[330912648,1719937869280,-500.0,0.00022988,4]
[330912649,1719937869289,-6600.079412,0.00022988,7]
[330912650,1719937869298,-151.0,0.00022988,7]
[330912651,1719937869308,-287.222504,0.00022988,7]
[330912652,1719937869318,-249.341596,0.00022988,7]
[330912653,1719937869327,-346.146739,0.00022988,7]
[330912654,1719937869337,-346.146739,0.00022988,7]
[330912655,1719937869347,-249.341596,0.00022988,7]
[330912656,1719937869356,-151.0,0.00022988,7]
[330912657,1719937869366,-214.600696,0.00022988,7]
[330912658,1719937869375,-500.0,0.00022988,4]
[330912659,1719937869384,-214.600696,0.00022988,7]
[330912660,1719937869393,-1472.46,0.00022988,4]
[330912661,1719937869403,-528.165437,0.00022988,7]
[330912662,1719937869412,-308.734887,0.00022988,7]
[330912663,1719937869421,-528.165437,0.00022988,7]
[330912664,1719937869430,-308.734887,0.00022988,7]
[330912665,1719937869440,-500.0,0.00022988,4]
[330912666,1719937869449,-151.0,0.00022988,7]
[330912667,1719937869459,-151.0,0.00022988,7]
[330912668,1719937869468,-704.650433,0.00022988,7]
[330912669,1719937869477,-879.73,0.00022988,4]
[330912670,1719937869487,-704.650433,0.00022988,7]
[330912671,1719937869496,-151.0,0.00022988,7]
[330912672,1719937869505,-527.87,0.00022988,4]
[330912673,1719937869514,-2048.8,0.00022988,4]
[330912674,1719937869524,-500.0,0.00022988,4]
[330912675,1719937869534,-151.0,0.00022988,7]
[330912676,1719937869543,-330.666223,0.00022988,7]
[330912677,1719937869553,-11053.41,0.00022988,4]
[330912678,1719937869563,-330.666223,0.00022988,7]
[330912679,1719937869572,-150.0,0.00022989,10]
[330912680,1719937869581,-150.0,0.00022989,10]
[330912681,1719937869591,-150.0,0.00022989,10]
[330912682,1719937869600,-150.0,0.00022989,10]
[330912683,1719937869610,-150.0,0.00022989,10]
[330912684,1719937869620,-150.0,0.00022989,10]
[330912685,1719937869629,-150.0,0.00022989,10]
[330912686,1719937869638,-150.0,0.00022989,10]
[330912687,1719937869648,-150.0,0.00022989,10]
[330912688,1719937869657,-300.0,0.00022989,2]
[330912689,1719937869667,-150.0,0.00022989,10]
[330912690,1719937869676,-150.0,0.00022989,10]
[330912691,1719937869685,-150.0,0.00022989,10]
[330912692,1719937869695,-150.0,0.00022989,10]
[330912693,1719937869705,-150.0,0.00022989,10]
[330912694,1719937869715,-155.22657497,0.00022989,10]
[330912695,1719937869725,-300.0,0.00022989,2]
[330912696,1719937869736,-300.0,0.00022989,2]
[330912697,1719937869745,-300.0,0.00022989,2]
[330912698,1719937869754,-150.0,0.00022989,10]
[330912699,1719937869765,-4911.69871833,0.00022989,2]
[330912700,1719937869776,-151.0,0.00022989,7]
[330912701,1719937869785,-168.99989,0.00022989,7]
[330912702,1719937869795,-155.8476,0.00022989,7]
[330912703,1719937869804,-155.8476,0.00022989,7]
[330912704,1719937869814,-2917.21,0.00022989,4]
[330912705,1719937869826,-2917.21,0.00022989,4]
[330912706,1719937869836,-2917.21,0.00022989,4]
[330912707,1719937869846,-2917.21,0.00022989,4]
[330912708,1719937869856,-2917.21,0.00022989,4]
[330912709,1719937869866,-2917.21,0.00022989,4]
[330912710,1719937869875,-2917.21,0.00022989,4]
[330912711,1719937869884,-2917.21,0.00022989,4]
[330912712,1719937869894,-2917.21,0.00022989,4]
[330912713,1719937869903,-2917.33,0.00022989,4]
[330912714,1719937869913,-174.77,0.00022989,4]
[330912715,1719937869923,-185.2,0.00022989,4]
[330912716,1719937869932,-500.0,0.00022989,4]
[330912717,1719937869942,-500.0,0.00022989,4]
[330912718,1719937869951,-500.0,0.00022989,4]
[330912719,1719937869961,-500.0,0.00022989,4]
[330912720,1719937869970,-234.94321144,0.00022989,4]
[330912721,1719937869981,-530.21,0.00022989,4]
[330912722,1719937869991,-530.21,0.00022989,4]
[330912723,1719937870001,-530.21,0.00022989,4]
[330912724,1719937870011,-530.21,0.00022989,4]
[330912725,1719937870025,-530.21,0.00022989,4]
[330912726,1719937870035,-530.21,0.00022989,4]
[330912727,1719937870044,-530.36912109,0.00022989,4]
[330912728,1719937870055,-4005.79,0.00022989,4]
[330912729,1719937870065,-4005.79,0.00022989,4]
[330912730,1719937870074,-4005.79,0.00022989,4]
[330912731,1719937870083,-4005.79,0.00022989,4]
[330912732,1719937870094,-4005.79,0.00022989,4]
[330912733,1719937870105,-4005.79,0.00022989,4]
[330912734,1719937870115,-4005.82491366,0.00022989,4]
[330912735,1719937870125,-500.0,0.00022989,4]
[330912736,1719937870134,-500.0,0.00022989,4]
[330912737,1719937870145,-592.98422166,0.00022989,4]
[330912738,1719937870154,-500.0,0.00022989,4]
[330912739,1719937870164,-500.0,0.00022989,4]
[330912740,1719937870173,-500.0,0.00022989,4]
[330912741,1719937870183,-500.0,0.00022989,4]
[330912742,1719937870193,-370.47,0.00022989,4]
[330912743,1719937870203,-743.39,0.00022989,4]
[330912744,1719937870213,-743.39,0.00022989,4]
[330912745,1719937870222,-743.39,0.00022989,4]
[330912746,1719937870232,-743.39,0.00022989,4]
[330912747,1719937870242,-743.39,0.00022989,4]
[330912748,1719937870252,-743.39,0.00022989,4]
[330912749,1719937870261,-743.53,0.00022989,4]
[330912750,1719937870273,-500.0,0.00022989,4]
[330912751,1719937870282,-383.37,0.00022989,4]
[330912752,1719937870291,-500.0,0.00022989,4]
[330912753,1719937870301,-500.0,0.00022989,4]
[330912754,1719937870311,-500.0,0.00022989,4]
[330912755,1719937870321,-500.0,0.00022989,4]
[330912756,1719937870331,-500.0,0.00022989,4]
[330912757,1719937870341,-500.0,0.00022989,4]
[330912758,1719937870351,-500.0,0.00022989,4]
[330912759,1719937870361,-500.0,0.00022989,4]
[330912760,1719937870370,-225.25834551,0.00022989,4]
[330912761,1719937870380,-1472.46,0.00022989,4]
[330912762,1719937870390,-1472.46,0.00022989,4]
[330912763,1719937870400,-1472.46,0.00022989,4]
[330912764,1719937870410,-1472.46,0.00022989,4]
[330912765,1719937870420,-1472.46,0.00022989,4]
[330912766,1719937870429,-1472.64676472,0.00022989,4]
[330912767,1719937870439,-500.0,0.00022989,4]
[330912768,1719937870449,-500.0,0.00022989,4]
[330912769,1719937870459,-500.0,0.00022989,4]
[330912770,1719937870468,-500.0,0.00022989,4]
[330912771,1719937870479,-500.0,0.00022989,4]
[330912772,1719937870488,-217.69,0.00022989,4]
[330912773,1719937870498,-879.73,0.00022989,4]
[330912774,1719937870507,-879.73,0.00022989,4]
[330912775,1719937870519,-879.73,0.00022989,4]
[330912776,1719937870528,-879.73,0.00022989,4]
[330912777,1719937870538,-879.73,0.00022989,4]
[330912778,1719937870548,-879.78478638,0.00022989,4]
[330912779,1719937870557,-527.87,0.00022989,4]
[330912780,1719937870567,-527.87,0.00022989,4]
[330912781,1719937870577,-527.87,0.00022989,4]
[330912782,1719937870587,-2048.8,0.00022989,4]
[330912783,1719937870597,-527.87,0.00022989,4]
[330912784,1719937870607,-2048.8,0.00022989,4]
[330912785,1719937870616,-527.98,0.00022989,4]
[330912786,1719937870626,-2048.8,0.00022989,4]
[330912787,1719937870636,-166.76,0.00022989,4]
[330912788,1719937870646,-2048.8,0.00022989,4]
[330912789,1719937870656,-2048.8,0.00022989,4]
[330912790,1719937870665,-2048.87,0.00022989,4]
[330912791,1719937870675,-11053.41,0.00022989,4]
[330912792,1719937870685,-11053.41,0.00022989,4]
[330912793,1719937870694,-11053.41,0.00022989,4]
[330912794,1719937870704,-11053.41,0.00022989,4]
[330912795,1719937870714,-11053.41,0.00022989,4]
[330912796,1719937870724,-11053.41,0.00022989,4]
[330912797,1719937870734,-11053.56,0.00022989,4]
[330912798,1719937870744,-925.39455694,0.0002299,5]
[330912799,1719937870753,-357488.56848325,0.0002299,5]
[330912800,1719937870763,-442545.45988766,0.0002299,5]
[330912801,1719937871090,-166.8140169,0.0002186,2]
[330912802,1719937871101,-171232.79843988,0.0002299,5]
[330912803,1719937871111,-363956.57815443,0.0002299,5]
[330912804,1719937871124,-62062.90574171,0.0002299,5]
[330912805,1719937871136,-13760.38272239,0.0002299,5]
[330912806,1719937871293,-166.8140169,0.0002186,2]
[330912807,1719937871303,-166.8140169,0.0002186,2]
[330912808,1719937871313,-166.8140169,0.0002186,2]
[330912809,1719937871323,-166.8140169,0.0002186,2]
[330912810,1719937871334,-166.8140169,0.0002186,2]
[330912811,1719937871345,-166.8140169,0.0002186,2]
[330912812,1719937871356,-166.8140169,0.0002186,2]
[330912813,1719937871366,-166.8140169,0.0002186,2]
[330912814,1719937871377,-166.8140169,0.0002186,2]
[330912815,1719937871388,-500.0,0.00022465,4]
[330912816,1719937871398,-500.0,0.00022465,2]
[330912817,1719937871408,-500.0,0.00022465,2]
[330912818,1719937871417,-494.9907984,0.00022465,2]
[330912819,1719937871427,-500.0,0.00022897,4]
[330912820,1719937871437,-500.0,0.00022899,4]
[330912821,1719937871447,-500.0,0.00022961,4]
[330912822,1719937871457,-13610.05385525,0.0002299,5]
[330912823,1719937871470,-35742.82117363,0.0002299,5]
[330912824,1719937871486,-92551.89351682,0.0002299,5]
[330912825,1719937871503,-166.8140169,0.0002186,2]
[330912826,1719937871513,-173921.40783249,0.0002299,5]
[330912827,1719937871533,-500.0,0.00022465,4]
[330912828,1719937871542,-285.44497192,0.0002299,5]
[330912829,1719937871554,-869.95370905,0.0002299,5]
[330912830,1719937871574,-166.8140169,0.00021879,2]
[330912831,1719937871583,-500.0,0.00022962,4]
[330912832,1719937871593,-5506.1859831,0.0002299,5]
[330912833,1719937871910,-347.788173,0.00021179,2]
[330912834,1719937871995,-1309.211827,0.00021179,2]
[330912835,1719937872005,-432.401673,0.00021313,2]
[330912836,1719937872030,-765.598327,0.00021313,2]
[330912837,1719937872039,-165.7284086,0.00021884,2]
[330912838,1719937872063,-1.0856083,0.00021884,2]
[330912839,1719937872073,-166.8140169,0.00021884,2]
[330912840,1719937872084,-166.8140169,0.00021884,2]
[330912841,1719937872093,-166.8140169,0.00021884,2]
[330912842,1719937872104,-166.8140169,0.00021884,2]
[330912843,1719937872113,-166.8140169,0.00021884,2]
[330912844,1719937872123,-166.8140169,0.00021884,2]
[330912845,1719937872132,-166.8140169,0.00021884,2]
[330912846,1719937872141,-166.8140169,0.00021884,2]
[330912847,1719937872150,-166.8140169,0.00021884,2]
[330912848,1719937872159,-166.8140169,0.00021884,2]
[330912849,1719937872168,-316.47654291,0.00022042,2]
[330912850,1719937872178,-155.0,0.00022329,2]
[330912851,1719937872188,-407.22524525,0.00022465,2]
[330912852,1719937872200,-1549.225,0.00022465,2]
[330912853,1719937872210,-854.15,0.00022465,2]
[330912854,1719937872222,-538.4355534,0.00022465,2]
[330912855,1719937872232,-3709.2,0.00022465,2]
[330912856,1719937872254,-166.8140169,0.00021884,2]
[330912857,1719937872263,-11484.39736384,0.00022465,2]
[330912858,1719937872277,-863.175,0.00022465,2]
[330912861,1719937950844,150.0,0.00022003,120]
[330912873,1719938070766,150.0,0.00023467,120]
[330912878,1719938191418,150.0,0.00022869,120]
[330912920,1719938870196,-150.0,0.000138,2]
[330912921,1719938870224,-300.0,0.00013899,2]
[330912922,1719938870252,-1567.8844,0.000139,2]
[330912923,1719938870280,-1599.14836294,0.000139,2]
[330912924,1719938870308,-315.50160688,0.00013982,2]
[330912925,1719938870337,-179.6168885,0.0001399,2]
[330912926,1719938870363,-307.22,0.0001399,3]
[330912927,1719938870390,-30594.19183751,0.0001399,2]
[330912928,1719938870421,-633132.43690417,0.00014,2]
[330912929,1719938877245,-192936.43441912,0.00014,2]
[330912950,1719939006512,-544.56,0.00012441,2]
[330912951,1719939006543,-300.0,0.00013999,2]
[330912952,1719939006574,-24155.44,0.00014,2]
[330912956,1719939032472,-882.40264769,0.00014,2]
[330912957,1719939032524,-1913.12,0.00014,2]
[330912958,1719939032536,-11571.14143,0.00014,2]
[330912959,1719939032548,-2189.43119808,0.00014,2]
[330912963,1719939032610,-800.07111468,0.00014,2]
[330912964,1719939032622,-12191.51498028,0.00014,2]
[330912965,1719939032635,-49462.04270525,0.00014,2]
[330912966,1719939032645,-553.58236936,0.00014,2]
[330912967,1719939032655,-302.3304855,0.00014,2]
[330912968,1719939032665,-33820.79803343,0.00014,2]
[330912969,1719939032674,-200.7425604,0.00014,2]
[330912970,1719939032684,-280.92811136,0.00014,2]
[330912971,1719939032694,-20320.67814101,0.00014,2]
[330912972,1719939032703,-150.0,0.00014082,2]
[330912973,1719939032717,-200.0,0.00014092,2]
[330912974,1719939032727,-954.79955599,0.000141,2]
[330912975,1719939032736,-250.0,0.00014251,2]
[330912976,1719939032746,-250.0,0.00014324,2]
[330912977,1719939032755,-500.0,0.00014458,2]
[330912978,1719939032765,-155.69,0.00014476,2]
[330912979,1719939032774,-499.99,0.000146,2]
[330912980,1719939032784,-544.56,0.00014705,2]
[330912981,1719939032793,-212.44,0.00014714,2]
[330912982,1719939032803,-155.69,0.00014853,2]
[330912983,1719939032813,-1599.14836293,0.00014899,2]
[330912985,1719939032823,-168.45382191,0.000149,2]
[330912986,1719939032832,-182.32785995,0.000149,2]
[330912987,1719939032842,-233.85367932,0.000149,2]
[330912988,1719939032851,-315.50160687,0.000149,2]
[330912989,1719939032860,-23900.0,0.00014983,2]
[330912990,1719939032870,-179.6168885,0.0001499,2]
[330912991,1719939032880,-150.99,0.00014999,2]
[330912992,1719939032890,-350751.11566614,0.00015,2]
[330912993,1719939032913,-2884.024,0.00015,2]
[330912994,1719939032924,-12995.0,0.00015,2]
[330912995,1719939032935,-297.04785907,0.00015,2]
[330912996,1719939032947,-32387.52434985,0.00015,2]
[330912997,1719939032963,-37984.2699835,0.00015,2]
[330913001,1719939037535,-384.59479513,0.00015,2]
[330913004,1719939037547,-267.4029094,0.00015,2]
[330913005,1719939037590,-734.70866164,0.00015,2]
[330913006,1719939037602,-1014.28138797,0.00015,2]
[330913007,1719939037644,-14210.41371415,0.00015,2]
[330913008,1719939037657,-780.33589964,0.00015,2]
[330913009,1719939037669,-368.4034386,0.00015,2]
[330913010,1719939037701,-570.18901416,0.00015,2]
[330913011,1719939037713,-31379.86762403,0.00015,2]
[330913012,1719939037770,-781.88578096,0.00015,2]
[330913013,1719939037782,-769.22313,0.00015,2]
[330913014,1719939037794,-3804.36369245,0.00015,2]
[330913015,1719939037806,-28337.86218482,0.00015,2]
[330913016,1719939037818,-44575.59841849,0.00015,2]
[330913017,1719939037829,-298.0119726,0.00015,2]
[330913018,1719939037840,-347.93,0.00015,2]
[330913019,1719939037852,-28355.42344949,0.00015,2]
[330913023,1719939039670,-716.8094612,0.00015,2]
[330913024,1719939039683,-517.3092,0.00015,2]
[330913025,1719939039778,-787.14458058,0.00015,2]
[330913026,1719939039790,-296428.44441231,0.00015,2]
[330913027,1719939039848,-411.10322206,0.00015,2]
[330913028,1719939039860,-3532.00000001,0.00015,2]
[330913029,1719939039873,-304.50206645,0.00015,2]
[330913030,1719939040043,-80944.70253787,0.00015,2]
[330913031,1719939040053,-1812.67434179,0.00015,2]
[330913032,1719939040095,-3301.33136431,0.00015,2]
[330913142,1719939042630,-749.26404731,0.00015,2]
[330913144,1719939042641,-60536.80999999,0.00015,2]
[330913148,1719939042671,-462.35210801,0.00015,2]
[330913150,1719939042682,-8450.7127794,0.00015,2]
[330913152,1719939042693,-35742.82117363,0.00015,2]
[330913156,1719939042725,-28443.13416997,0.00015,2]
[330913158,1719939042734,-1000.0,0.00015151,2]
[330913159,1719939042744,-240.62,0.00015151,2]
[330913161,1719939042753,-155.69,0.0001523,2]
[330913163,1719939042763,-210.83247485,0.00015237,2]
[330913165,1719939042772,-420.0,0.00015337,2]
[330913167,1719939042782,-8537.91,0.00015355,2]
[330913169,1719939042791,-285.13,0.00015371,2]
[330913171,1719939042800,-500.0,0.00015592,2]
[330913172,1719939042809,-500.0,0.00015592,2]
[330913174,1719939042819,-500.0,0.00015592,2]
[330913176,1719939042828,-500.0,0.00015754,2]
[330913178,1719939042838,-441.53782266,0.00015754,2]
[330913180,1719939042847,-500.0,0.00015754,2]
[330913182,1719939042856,-500.0,0.00015754,2]
[330913184,1719939042866,-308.36303699,0.00015754,2]
[330913185,1719939042875,-500.0,0.00015754,2]
[330913187,1719939042884,-500.0,0.00015754,2]
[330913189,1719939042893,-500.0,0.00015754,2]
[330913191,1719939042902,-500.0,0.00015754,2]
[330913193,1719939042911,-234.31909518,0.00015754,2]
[330913195,1719939042919,-500.0,0.00015754,2]
[330913196,1719939042928,-500.0,0.00015754,2]
[330913198,1719939042939,-500.0,0.00015754,2]
[330913200,1719939042948,-500.0,0.00015754,2]
[330913202,1719939042958,-500.0,0.00015754,2]
[330913204,1719939042969,-500.0,0.00015754,2]
[330913206,1719939042978,-500.0,0.00015754,2]
[330913208,1719939042987,-500.0,0.00015754,2]
[330913210,1719939042996,-500.0,0.00015754,2]
[330913212,1719939043005,-500.0,0.00015754,2]
[330913213,1719939043015,-585.63,0.00015754,2]
[330913215,1719939043024,-172.91,0.00015755,2]
[330913217,1719939043033,-369.21,0.00015755,2]
[330913219,1719939043043,-1599.14836293,0.00015898,2]
[330913221,1719939043052,-954.79955593,0.00016053,2]
[330913223,1719939043061,-315.50160687,0.00016498,2]
[330913225,1719939043070,-587.0,0.00016802,2]
[330913227,1719939043080,-155.11752657,0.00016808,2]
[330913228,1719939043089,-518.04242089,0.00016808,2]
[330913230,1719939043099,-345.97900744,0.00016808,2]
[330913232,1719939043108,-265.41435654,0.00016808,2]
[330913234,1719939043117,-206.07168017,0.00016808,2]
[330913236,1719939043126,-1599.14836293,0.00016897,2]
[330913238,1719939043135,-544.56,0.00016969,2]
[330913240,1719939043144,-19618.18912428,0.00016969,2]
[330913241,1719939043153,-7096.36275677,0.00016969,2]
[330913243,1719939043162,-373.6579195,0.00016969,2]
[330913245,1719939043171,-155.46196403,0.00016969,2]
[330913247,1719939043180,-158.86009896,0.00016969,2]
[330913249,1719939043189,-417.18626309,0.00016969,2]
[330913251,1719939043198,-2212.15099067,0.00016969,2]
[330913252,1719939043207,-989.61053108,0.00016969,2]
[330913254,1719939043217,-766.78864822,0.00016969,2]
[330913256,1719939043227,-10557.12229191,0.00016969,2]
[330913258,1719939043236,-753.70840975,0.00016969,2]
[330913260,1719939043245,-310.0,0.00016969,2]
[330913262,1719939043254,-2857.98675879,0.00016969,2]
[330913264,1719939043263,-155.0,0.00016969,2]
[330913266,1719939043273,-954.79955593,0.0001703,2]
[330913268,1719939043282,-1000.0,0.00017045,2]
[330913270,1719939043293,-240.62,0.00017045,2]
[330913271,1719939043303,-5000.0,0.00017159,2]
[330913272,1719939043312,-500.0,0.00017236,2]
[330913273,1719939043323,-500.0,0.00017236,2]
[330913274,1719939043332,-3968.79438035,0.00017444,2]
[330913275,1719939043341,-2493.91059926,0.00017889,2]
[330913276,1719939043350,-1599.14836293,0.00017896,2]
[330913277,1719939043359,-954.79955593,0.00018007,2]
[330913278,1719939043369,-315.50160687,0.00018096,2]
[330913279,1719939043383,-500.0,0.00018332,2]
[330913280,1719939043391,-500.0,0.00018332,2]
[330913281,1719939043400,-823.0,0.00018408,2]
[330913282,1719939043410,-153.6992578,0.00018594,2]
[330913283,1719939043420,-1392.67864661,0.00018649,2]
[330913284,1719939043430,-1054.20873751,0.00018649,2]
[330913285,1719939043439,-153.6992578,0.0001865,2]
[330913286,1719939043448,-1286.76187843,0.00018717,2]
[330913287,1719939043458,-151.14566898,0.00018725,2]
[330913288,1719939043468,-698.91607848,0.00018739,2]
[330913289,1719939043477,-622.93075988,0.00018759,2]
[330913290,1719939043486,-461.77519824,0.00018764,2]
[330913291,1719939043495,-165.4084403,0.00018835,2]
[330913292,1719939043504,-647.42838071,0.00018835,2]
[330913293,1719939043513,-155.0,0.00018835,2]
[330913294,1719939043523,-690.00328514,0.00018835,2]
[330913295,1719939043531,-791.80589284,0.00018835,2]
[330913296,1719939043541,-155.77732901,0.00018839,2]
[330913297,1719939043551,-208.17,0.00018849,30]
[330913298,1719939043560,-476.02603799,0.00018864,2]
[330913299,1719939043568,-210.18261467,0.00018864,2]
[330913300,1719939043578,-528.53097228,0.00018864,2]
[330913301,1719939043587,-242.32364577,0.00018864,2]
[330913302,1719939043597,-309.92840343,0.00018864,2]
[330913303,1719939043606,-254.17046342,0.00018864,2]
[330913304,1719939043615,-1599.14836293,0.00018894,2]
[330913305,1719939043625,-155.0,0.00018899,2]
[330913306,1719939043634,-186.51374875,0.00018899,2]
[330913307,1719939043643,-430.9664964,0.00018899,2]
[330913308,1719939043652,-255.85873735,0.00018899,2]
[330913309,1719939043661,-438.00098198,0.00018899,2]
[330913310,1719939043670,-430.9664964,0.00018899,2]
[330913311,1719939043680,-369.91398767,0.00018899,2]
[330913312,1719939043689,-491.51691083,0.00018899,2]
[330913313,1719939043876,-151.03,0.000189,2]
[330913314,1719939043886,-151.03,0.000189,2]
[330913315,1719939043896,-186.41360317,0.00018908,2]
[330913316,1719939043905,-173.80868065,0.00018919,2]
[330913317,1719939043915,-155.16497867,0.00018919,2]
[330913318,1719939043924,-287.92176092,0.00018919,2]
[330913319,1719939043933,-155.0,0.00018919,2]
[330913320,1719939043942,-155.2100544,0.00018919,2]
[330913321,1719939043951,-475.2316268,0.00018919,2]
[330913322,1719939043960,-209.08867224,0.00018919,2]
[330913323,1719939043971,-155.0,0.00018919,2]
[330913324,1719939043980,-196.20443442,0.00018919,2]
[330913325,1719939043989,-1000.0,0.00018939,2]
[330913326,1719939043999,-240.62,0.00018939,2]
[330913327,1719939044008,-954.79955593,0.00018983,2]
[330913328,1719939044017,-274.1161028,0.00018999,2]
[330913329,1719939044026,-190.80519133,0.00018999,2]
[330913330,1719939044035,-297.60689096,0.00018999,2]
[330913331,1719939044044,-153.6992578,0.00019012,2]
[330913332,1719939044053,-161.14110779,0.00019056,2]
[330913333,1719939044062,-227.09542874,0.00019077,2]
[330913334,1719939044071,-181.3517877,0.00019097,2]
[330913335,1719939044080,-1629.68403831,0.00019177,2]
[330913336,1719939044089,-250.0,0.00019178,2]
[330913337,1719939044098,-157.58773495,0.00019183,2]
[330913338,1719939044107,-166.66666666,0.00019197,2]
[330913339,1719939044116,-153.6992578,0.00019201,2]
[330913340,1719939044125,-155.77732901,0.0001921,2]
[330913341,1719939044134,-305.3305634,0.00019229,2]
[330913342,1719939044143,-544.56,0.00019233,2]
[330913343,1719939044152,-300.0,0.00019279,2]
[330913344,1719939044162,-186.41360317,0.00019296,2]
[330913345,1719939044171,-366.99921746,0.00019299,2]
[330913346,1719939044180,-365.91164053,0.00019299,2]
[330913347,1719939044190,-227.90866278,0.00019299,2]
[330913348,1719939044199,-155.0,0.00019299,2]
[330913349,1719939044208,-152.77270294,0.00019332,2]
[330913350,1719939044219,-2006.18061981,0.0001935,2]
[330913351,1719939044228,-296.71594966,0.00019352,2]
[330913352,1719939044237,-155.8493762,0.00019355,2]
[330913353,1719939044246,-186.41360317,0.00019389,2]
[330913354,1719939044255,-500.0,0.00019428,2]
[330913355,1719939044264,-500.0,0.00019428,2]
[330913356,1719939044273,-4251.48388325,0.00019451,2]
[330913357,1719939044452,-5804.77917735,0.00019451,2]
[330913358,1719939044493,-384.34999965,0.00019451,2]
[330913359,1719939044505,-1243.9391314,0.00019451,2]
[330913360,1719939044523,-382.12258582,0.00019451,2]
[330913361,1719939044535,-453.8567141,0.00019451,2]
[330913362,1719939044547,-1308.30798617,0.00019451,2]
[330913363,1719939044559,-900.0,0.00019451,2]
[330913370,1719939045627,-161.95,0.00013924,2]
[330913371,1719939045638,-199.48872924,0.00016808,2]
[330913372,1719939045683,-412.23419476,0.00016808,2]
[330913373,1719939045692,-500.0,0.00017405,2]
[330913374,1719939045701,-12.18090543,0.00018759,2]